[Event "Titled Tuesday Blitz February 28 Early 2023"]
[White "Fernandez Garcia, Gumersindo"]
[Black "Bongo Akanga Ndjila, Barthelemy"]
[WhiteFideId "24516740"]
[BlackFideId "10609431"]
[WhiteElo "2093"]
[BlackElo "1768"]
[Result "0-1"]
[Round "03"]
[TimeControl "180+2"]
[Date "2023.02.28"]
[WhiteClock "0:00:13"]
[BlackClock "0:00:22"]

1. e4 {[%clk 0:03:00]}  e6 {[%clk 0:02:54]} 2. d4 {[%clk 0:02:59]}  d5 {[%clk 0:02:54]} 3. Bd3 {[%clk 0:02:59]}  Nf6 {[%clk 0:02:54]} 4. e5 {[%clk 0:02:55]}  Nfd7 {[%clk 0:02:53]} 5. c3 {[%clk 0:02:54]}  c5 {[%clk 0:02:53]} 6. f4 {[%clk 0:02:53]}  Nc6 {[%clk 0:02:53]} 7. Ne2 {[%clk 0:02:50]}  a6 {[%clk 0:02:52]} 8. Nd2 {[%clk 0:02:49]}  f6 {[%clk 0:02:44]} 9. Nf3 {[%clk 0:02:46]}  f5 {[%clk 0:02:40]} 10. Be3 {[%clk 0:02:41]}  b5 {[%clk 0:02:38]} 11. g4 {[%clk 0:02:27]}  fxg4 {[%clk 0:02:34]} 12. Ng5 {[%clk 0:02:25]}  cxd4 {[%clk 0:02:23]} 13. cxd4 {[%clk 0:02:11]}  Nb6 {[%clk 0:02:18]} 14. Bxh7 {[%clk 0:02:08]}  Rxh7 {[%clk 0:02:13]} 15. Nxh7 {[%clk 0:02:05]}  Qh4+ {[%clk 0:02:13]} 16. Ng3 {[%clk 0:02:06]}  Qxh7 {[%clk 0:02:13]} 17. Qxg4 {[%clk 0:02:03]}  Nc4 {[%clk 0:02:09]} 18. Kf2 {[%clk 0:01:41]}  Qc2+ {[%clk 0:01:59]} 19. Ne2 {[%clk 0:01:40]}  Nxe3 {[%clk 0:01:48]} 20. Kxe3 {[%clk 0:01:41]}  Qe4+ {[%clk 0:01:46]} 21. Kf2 {[%clk 0:01:40]}  Nxd4 {[%clk 0:01:42]} 22. Qh5+ {[%clk 0:01:39]}  g6 {[%clk 0:01:40]} 23. Qg4 {[%clk 0:01:28]}  Bc5 {[%clk 0:01:39]} 24. Nxd4 {[%clk 0:01:25]}  Bxd4+ {[%clk 0:01:39]} 25. Kg3 {[%clk 0:01:25]}  Bd7 {[%clk 0:01:33]} 26. Rhe1 {[%clk 0:01:21]}  Qd3+ {[%clk 0:01:30]} 27. Kg2 {[%clk 0:01:21]}  O-O-O {[%clk 0:01:29]} 28. Rac1+ {[%clk 0:01:14]}  Kb8 {[%clk 0:01:28]} 29. Re2 {[%clk 0:01:10]}  Be3 {[%clk 0:01:02]} 30. Rcc2 {[%clk 0:01:09]}  d4 {[%clk 0:00:57]} 31. Qf3 {[%clk 0:01:05]}  Rh8 {[%clk 0:00:54]} 32. Rcd2 {[%clk 0:00:59]}  Qf5 {[%clk 0:00:51]} 33. Rxe3 {[%clk 0:00:54]}  dxe3 {[%clk 0:00:50]} 34. Rxd7 {[%clk 0:00:55]}  Qc2+ {[%clk 0:00:47]} 35. Kf1 {[%clk 0:00:41]}  e2+ {[%clk 0:00:42]} 36. Qxe2 {[%clk 0:00:33]}  Qc1+ {[%clk 0:00:36]} 37. Kg2 {[%clk 0:00:25]}  Qxf4 {[%clk 0:00:35]} 38. h3 {[%clk 0:00:24]}  Rh5 {[%clk 0:00:30]} 39. Qf3 {[%clk 0:00:19]}  Rg5+ {[%clk 0:00:29]} 40. Kf2 {[%clk 0:00:19]}  Qh2+ {[%clk 0:00:28]} 41. Ke3 {[%clk 0:00:14]}  Rg3 {[%clk 0:00:27]} 42. Rd8+ {[%clk 0:00:13]}  Kc7 {[%clk 0:00:27]} 43. Rf8 {[%clk 0:00:13]}  Rxf3+ {[%clk 0:00:26]} 44. Rxf3 {[%clk 0:00:14]}  Qg1+ {[%clk 0:00:25]} 45. Kf4 {[%clk 0:00:14]}  Qd1 {[%clk 0:00:23]} 46. Rg3 {[%clk 0:00:14]}  Qd4+ {[%clk 0:00:22]} 47. Kf3 {[%clk 0:00:12]}  Qxe5 {[%clk 0:00:22]} 48. Rxg6 {[%clk 0:00:13]}  Qf5+ {[%clk 0:00:22]} 0-1


[Site "https://www.chess.com"]

[Event "Titled Tuesday Blitz February 28 Early 2023"]
[White "Rian, Kapriaga"]
[Black "Larina, Maria"]
[WhiteFideId "7103263"]
[BlackFideId "24113182"]
[WhiteElo "2364"]
[BlackElo "1848"]
[Result "1-0"]
[Round "03"]
[TimeControl "180+2"]
[Date "2023.02.28"]
[WhiteClock "0:00:24"]
[BlackClock "0:00:01"]

1. d4 {[%clk 0:03:00]}  f5 {[%clk 0:02:59]} 2. Nc3 {[%clk 0:02:59]}  Nf6 {[%clk 0:02:59]} 3. Bg5 {[%clk 0:02:59]}  d5 {[%clk 0:02:58]} 4. Nf3 {[%clk 0:02:58]}  Ne4 {[%clk 0:02:54]} 5. e3 {[%clk 0:02:56]}  Nxg5 {[%clk 0:02:30]} 6. Nxg5 {[%clk 0:02:55]}  e5 {[%clk 0:02:04]} 7. Nf3 {[%clk 0:02:53]}  e4 {[%clk 0:02:00]} 8. Ne5 {[%clk 0:02:53]}  g6 {[%clk 0:01:43]} 9. f4 {[%clk 0:02:39]}  exf3 {[%clk 0:01:37]} 10. Qxf3 {[%clk 0:02:38]}  Bg7 {[%clk 0:01:35]} 11. Nxd5 {[%clk 0:02:22]}  c6 {[%clk 0:01:26]} 12. Nf4 {[%clk 0:02:10]}  Qa5+ {[%clk 0:01:22]} 13. c3 {[%clk 0:02:07]}  Bxe5 {[%clk 0:01:20]} 14. dxe5 {[%clk 0:02:07]}  Qxe5 {[%clk 0:01:21]} 15. O-O-O {[%clk 0:02:05]}  Be6 {[%clk 0:00:58]} 16. Bd3 {[%clk 0:01:39]}  Nd7 {[%clk 0:00:52]} 17. Rhe1 {[%clk 0:01:34]}  O-O-O {[%clk 0:00:47]} 18. e4 {[%clk 0:01:34]}  Nc5 {[%clk 0:00:22]} 19. exf5 {[%clk 0:01:28]}  Nxd3+ {[%clk 0:00:21]} 20. Nxd3 {[%clk 0:01:16]}  Qxf5 {[%clk 0:00:20]} 21. Qxf5 {[%clk 0:01:09]}  Bxf5 {[%clk 0:00:21]} 22. Ne5 {[%clk 0:01:04]}  Rxd1+ {[%clk 0:00:21]} 23. Rxd1 {[%clk 0:01:03]}  Rd8 {[%clk 0:00:18]} 24. Rxd8+ {[%clk 0:01:01]}  Kxd8 {[%clk 0:00:19]} 25. Kd2 {[%clk 0:01:01]}  Ke7 {[%clk 0:00:18]} 26. Ke3 {[%clk 0:01:01]}  Ke6 {[%clk 0:00:17]} 27. Nf3 {[%clk 0:00:58]}  Bb1 {[%clk 0:00:17]} 28. a3 {[%clk 0:00:54]}  h6 {[%clk 0:00:17]} 29. h4 {[%clk 0:00:53]}  b6 {[%clk 0:00:12]} 30. Kf4 {[%clk 0:00:52]}  c5 {[%clk 0:00:12]} 31. g4 {[%clk 0:00:49]}  Kf6 {[%clk 0:00:12]} 32. g5+ {[%clk 0:00:47]}  hxg5+ {[%clk 0:00:13]} 33. Nxg5 {[%clk 0:00:43]}  Bc2 {[%clk 0:00:10]} 34. b4 {[%clk 0:00:43]}  cxb4 {[%clk 0:00:10]} 35. cxb4 {[%clk 0:00:42]}  a5 {[%clk 0:00:09]} 36. Nf3 {[%clk 0:00:38]}  axb4 {[%clk 0:00:09]} 37. axb4 {[%clk 0:00:39]}  b5 {[%clk 0:00:08]} 38. Nd4 {[%clk 0:00:38]}  Ba4 {[%clk 0:00:08]} 39. Nf3 {[%clk 0:00:35]}  Bc2 {[%clk 0:00:08]} 40. Ne5 {[%clk 0:00:35]}  Ba4 {[%clk 0:00:07]} 41. Ng4+ {[%clk 0:00:31]}  Ke6 {[%clk 0:00:06]} 42. Kg5 {[%clk 0:00:31]}  Kf7 {[%clk 0:00:05]} 43. Ne5+ {[%clk 0:00:31]}  Kg7 {[%clk 0:00:06]} 44. Nxg6 {[%clk 0:00:29]}  Bc2 {[%clk 0:00:06]} 45. Ne5 {[%clk 0:00:29]}  Be4 {[%clk 0:00:06]} 46. h5 {[%clk 0:00:29]}  Kh7 {[%clk 0:00:05]} 47. h6 {[%clk 0:00:29]}  Kg8 {[%clk 0:00:05]} 48. Ng4 {[%clk 0:00:28]}  Bc2 {[%clk 0:00:04]} 49. Kf6 {[%clk 0:00:26]}  Kh7 {[%clk 0:00:04]} 50. Kg5 {[%clk 0:00:24]}  Bd1 {[%clk 0:00:02]} 51. Nf6+ {[%clk 0:00:24]}  Kh8 {[%clk 0:00:02]} 52. Kf4 {[%clk 0:00:24]}  Be2 {[%clk 0:00:01]} 53. Ke3 {[%clk 0:00:24]}  Bc4 {[%clk 0:00:01]} 54. Kd4 {[%clk 0:00:24]} 1-0


[Site "https://www.chess.com"]

[Event "Titled Tuesday Blitz February 28 Early 2023"]
[White "Tiarks, Jann-Christian"]
[Black "Gutierrez Espinosa, Karen"]
[WhiteFideId "12951595"]
[BlackFideId "3513238"]
[WhiteElo "2194"]
[BlackElo "2017"]
[Result "1-0"]
[Round "03"]
[TimeControl "180+2"]
[Date "2023.02.28"]
[WhiteClock "0:01:22"]
[BlackClock "0:01:41"]

1. e4 {[%clk 0:03:00]}  c5 {[%clk 0:02:42]} 2. b4 {[%clk 0:03:00]}  cxb4 {[%clk 0:02:38]} 3. a3 {[%clk 0:02:58]}  bxa3 {[%clk 0:02:35]} 4. Bxa3 {[%clk 0:02:56]}  Nc6 {[%clk 0:02:33]} 5. Nf3 {[%clk 0:02:50]}  d6 {[%clk 0:02:26]} 6. d4 {[%clk 0:02:48]}  Bg4 {[%clk 0:02:25]} 7. Be2 {[%clk 0:02:46]}  Bxf3 {[%clk 0:02:23]} 8. Bxf3 {[%clk 0:02:42]}  g6 {[%clk 0:02:23]} 9. O-O {[%clk 0:02:26]}  Bg7 {[%clk 0:02:17]} 10. c3 {[%clk 0:02:26]}  Nf6 {[%clk 0:02:13]} 11. Qb3 {[%clk 0:02:14]}  Qd7 {[%clk 0:02:04]} 12. Re1 {[%clk 0:01:56]}  O-O {[%clk 0:01:59]} 13. e5 {[%clk 0:01:49]}  dxe5 {[%clk 0:01:55]} 14. dxe5 {[%clk 0:01:47]}  Ne8 {[%clk 0:01:44]} 15. e6 {[%clk 0:01:36]}  fxe6 {[%clk 0:01:43]} 16. Rxe6 {[%clk 0:01:35]}  Nc7 {[%clk 0:01:41]} 17. Rxe7+ {[%clk 0:01:22]} 1-0


[Site "https://www.chess.com"]

[Event "Titled Tuesday Blitz February 28 Early 2023"]
[White "Sarkar, Justin"]
[Black "Jesusesmifuerza"]
[WhiteFideId "2010011"]
[WhiteElo "2189"]
[BlackElo "1996"]
[Result "0-1"]
[Round "03"]
[TimeControl "180+2"]
[Date "2023.02.28"]
[WhiteClock "0:00:01"]
[BlackClock "0:00:05"]

1. d4 {[%clk 0:02:50]}  d5 {[%clk 0:02:59]} 2. c4 {[%clk 0:02:47]}  e6 {[%clk 0:02:59]} 3. Nf3 {[%clk 0:02:42]}  a6 {[%clk 0:02:59]} 4. cxd5 {[%clk 0:02:23]}  exd5 {[%clk 0:03:00]} 5. Qb3 {[%clk 0:02:15]}  c5 {[%clk 0:02:43]} 6. Bg5 {[%clk 0:02:01]}  f6 {[%clk 0:02:22]} 7. Bf4 {[%clk 0:01:55]}  Bd6 {[%clk 0:02:15]} 8. Bxd6 {[%clk 0:01:33]}  Qxd6 {[%clk 0:02:16]} 9. Qe3+ {[%clk 0:01:32]}  Qe6 {[%clk 0:01:57]} 10. Qxe6+ {[%clk 0:01:30]}  Bxe6 {[%clk 0:01:58]} 11. dxc5 {[%clk 0:01:29]}  Nc6 {[%clk 0:01:56]} 12. Nc3 {[%clk 0:01:18]}  Nge7 {[%clk 0:01:55]} 13. e3 {[%clk 0:01:15]}  O-O {[%clk 0:01:53]} 14. Bd3 {[%clk 0:01:02]}  Rac8 {[%clk 0:01:51]} 15. a3 {[%clk 0:00:51]}  Ne5 {[%clk 0:01:35]} 16. Nxe5 {[%clk 0:00:44]}  fxe5 {[%clk 0:01:36]} 17. Na4 {[%clk 0:00:38]}  Rc7 {[%clk 0:01:11]} 18. O-O {[%clk 0:00:32]}  Bd7 {[%clk 0:00:45]} 19. Nb6 {[%clk 0:00:31]}  Bf5 {[%clk 0:00:31]} 20. Bxf5 {[%clk 0:00:28]}  Nxf5 {[%clk 0:00:32]} 21. b4 {[%clk 0:00:23]}  d4 {[%clk 0:00:32]} 22. Nd5 {[%clk 0:00:12]}  Rd7 {[%clk 0:00:28]} 23. e4 {[%clk 0:00:12]}  Ne7 {[%clk 0:00:24]} 24. Nxe7+ {[%clk 0:00:12]}  Rxe7 {[%clk 0:00:23]} 25. f3 {[%clk 0:00:12]}  Rd7 {[%clk 0:00:22]} 26. Rfd1 {[%clk 0:00:11]}  Rff7 {[%clk 0:00:18]} 27. Kf2 {[%clk 0:00:11]}  Kf8 {[%clk 0:00:17]} 28. Ke2 {[%clk 0:00:11]}  g5 {[%clk 0:00:17]} 29. Kd3 {[%clk 0:00:08]}  Ke8 {[%clk 0:00:15]} 30. Rac1 {[%clk 0:00:06]}  Rc7 {[%clk 0:00:13]} 31. Kc4 {[%clk 0:00:04]}  Kd7 {[%clk 0:00:13]} 32. a4 {[%clk 0:00:04]}  Re7 {[%clk 0:00:12]} 33. b5 {[%clk 0:00:03]}  axb5+ {[%clk 0:00:12]} 34. axb5 {[%clk 0:00:03]}  Re8 {[%clk 0:00:12]} 35. Kd5 {[%clk 0:00:03]}  Re7 {[%clk 0:00:10]} 36. c6+ {[%clk 0:00:03]}  bxc6+ {[%clk 0:00:10]} 37. bxc6+ {[%clk 0:00:03]}  Kd8 {[%clk 0:00:10]} 38. Kd6 {[%clk 0:00:03]}  Ke8 {[%clk 0:00:09]} 39. Rb1 {[%clk 0:00:03]}  Kf7 {[%clk 0:00:10]} 40. Rb8 {[%clk 0:00:03]}  Re6+ {[%clk 0:00:09]} 41. Kd5 {[%clk 0:00:03]}  Rexc6 {[%clk 0:00:07]} 42. Kxe5 {[%clk 0:00:02]}  Rd7 {[%clk 0:00:05]} 43. Rxd4 {[%clk 0:00:01]}  Rxd4 {[%clk 0:00:05]} 44. Kxd4 {[%clk 0:00:01]}  Rc2 {[%clk 0:00:06]} 45. Rb7+ {[%clk 0:00:01]}  Kg6 {[%clk 0:00:05]} 0-1


[Site "https://www.chess.com"]

[Event "Titled Tuesday Blitz February 28 Early 2023"]
[White "Lohani, Sujana"]
[Black "Mesa Cruz, Juan Carlos"]
[WhiteFideId "12311987"]
[BlackFideId "6423400"]
[WhiteElo "1718"]
[BlackElo "2119"]
[Result "0-1"]
[Round "03"]
[TimeControl "180+2"]
[Date "2023.02.28"]
[WhiteClock "0:00:03"]
[BlackClock "0:00:06"]

1. d4 {[%clk 0:03:00]}  Nf6 {[%clk 0:02:58]} 2. Nf3 {[%clk 0:03:01]}  e6 {[%clk 0:02:56]} 3. c4 {[%clk 0:03:02]}  d5 {[%clk 0:02:54]} 4. Nc3 {[%clk 0:03:03]}  Bb4 {[%clk 0:02:52]} 5. Bd2 {[%clk 0:03:02]}  O-O {[%clk 0:02:52]} 6. e3 {[%clk 0:03:01]}  b6 {[%clk 0:02:51]} 7. Bd3 {[%clk 0:03:00]}  Bb7 {[%clk 0:02:50]} 8. cxd5 {[%clk 0:02:59]}  exd5 {[%clk 0:02:49]} 9. O-O {[%clk 0:02:58]}  a6 {[%clk 0:02:48]} 10. Rc1 {[%clk 0:02:57]}  Bd6 {[%clk 0:02:48]} 11. Bb1 {[%clk 0:02:54]}  Re8 {[%clk 0:02:48]} 12. h3 {[%clk 0:02:53]}  Nbd7 {[%clk 0:02:47]} 13. Qc2 {[%clk 0:02:52]}  c5 {[%clk 0:02:47]} 14. Rfd1 {[%clk 0:02:44]}  c4 {[%clk 0:02:44]} 15. Ne2 {[%clk 0:02:41]}  b5 {[%clk 0:02:43]} 16. b3 {[%clk 0:02:25]}  Rc8 {[%clk 0:02:08]} 17. bxc4 {[%clk 0:02:21]}  dxc4 {[%clk 0:02:09]} 18. a4 {[%clk 0:02:17]}  c3 {[%clk 0:02:03]} 19. Bxc3 {[%clk 0:02:10]}  b4 {[%clk 0:02:03]} 20. Qb3 {[%clk 0:02:09]}  Bd5 {[%clk 0:02:01]} 21. Qb2 {[%clk 0:02:03]}  bxc3 {[%clk 0:02:00]} 22. Nxc3 {[%clk 0:01:56]}  Bxf3 {[%clk 0:01:33]} 23. gxf3 {[%clk 0:01:55]}  Qe7 {[%clk 0:01:28]} 24. Ne4 {[%clk 0:01:50]}  Rxc1 {[%clk 0:01:22]} 25. Rxc1 {[%clk 0:01:30]}  Ba3 {[%clk 0:01:18]} 26. Qc2 {[%clk 0:01:06]}  Bxc1 {[%clk 0:01:13]} 27. Qxc1 {[%clk 0:01:05]}  Nxe4 {[%clk 0:01:12]} 28. Bxe4 {[%clk 0:01:04]}  Qg5+ {[%clk 0:01:08]} 29. Kh2 {[%clk 0:01:03]}  Nf6 {[%clk 0:01:08]} 30. Bb7 {[%clk 0:00:49]}  Qf5 {[%clk 0:01:02]} 31. Qc6 {[%clk 0:00:43]}  h5 {[%clk 0:00:59]} 32. Bxa6 {[%clk 0:00:40]}  Re6 {[%clk 0:00:51]} 33. Qc8+ {[%clk 0:00:38]}  Kh7 {[%clk 0:00:50]} 34. Bb7 {[%clk 0:00:37]}  g6 {[%clk 0:00:21]} 35. Qc7 {[%clk 0:00:33]}  Kg7 {[%clk 0:00:18]} 36. Kg2 {[%clk 0:00:29]}  Qg5+ {[%clk 0:00:17]} 37. Kh2 {[%clk 0:00:28]}  h4 {[%clk 0:00:18]} 38. d5 {[%clk 0:00:24]}  Re7 {[%clk 0:00:17]} 39. Qc6 {[%clk 0:00:15]}  Qf5 {[%clk 0:00:11]} 40. d6 {[%clk 0:00:14]}  Re6 {[%clk 0:00:08]} 41. Bc8 {[%clk 0:00:14]}  Qe5+ {[%clk 0:00:08]} 42. f4 {[%clk 0:00:13]}  Qxd6 {[%clk 0:00:08]} 43. Qc3 {[%clk 0:00:12]}  Re7 {[%clk 0:00:08]} 44. Bg4 {[%clk 0:00:11]}  Kh6 {[%clk 0:00:08]} 45. Kg2 {[%clk 0:00:07]}  Rc7 {[%clk 0:00:08]} 46. Qe1 {[%clk 0:00:06]}  Qc6+ {[%clk 0:00:08]} 47. Bf3 {[%clk 0:00:05]}  Qc3 {[%clk 0:00:08]} 48. Qb1 {[%clk 0:00:03]}  Rd7 {[%clk 0:00:06]} 49. Qb6 {[%clk 0:00:03]}  Rd2 {[%clk 0:00:06]} 0-1


[Site "https://www.chess.com"]

[Event "Titled Tuesday Blitz February 28 Early 2023"]
[White "Kozak, Adam"]
[Black "Nakamura, Hikaru"]
[WhiteFideId "753246"]
[BlackFideId "2016192"]
[WhiteElo "2469"]
[BlackElo "2879"]
[Result "0-1"]
[Round "04"]
[TimeControl "180+2"]
[Date "2023.02.28"]
[WhiteClock "0:02:16"]
[BlackClock "0:01:47"]

1. c4 {[%clk 0:02:47]}  Nf6 {[%clk 0:02:59]} 2. Nc3 {[%clk 0:02:47]}  e5 {[%clk 0:02:59]} 3. Nf3 {[%clk 0:02:47]}  Nc6 {[%clk 0:02:52]} 4. e4 {[%clk 0:02:46]}  Bb4 {[%clk 0:02:51]} 5. d3 {[%clk 0:02:46]}  d6 {[%clk 0:02:52]} 6. a3 {[%clk 0:02:46]}  Bc5 {[%clk 0:02:50]} 7. b4 {[%clk 0:02:45]}  Bb6 {[%clk 0:02:46]} 8. Be2 {[%clk 0:02:43]}  Nd4 {[%clk 0:02:36]} 9. Be3 {[%clk 0:02:29]}  c5 {[%clk 0:02:14]} 10. O-O {[%clk 0:02:26]}  O-O {[%clk 0:02:12]} 11. Nd2 {[%clk 0:02:22]}  Nxe2+ {[%clk 0:01:47]} 12. Qxe2 {[%clk 0:02:21]}  Ng4 {[%clk 0:01:48]} 13. f4 {[%clk 0:02:16]}  Nxe3 {[%clk 0:01:47]} 0-1


[Site "https://www.chess.com"]

[Event "Titled Tuesday Blitz February 28 Early 2023"]
[White "Firouzja, Alireza"]
[Black "Bacrot, Etienne"]
[WhiteFideId "12573981"]
[BlackFideId "605506"]
[WhiteElo "2904"]
[BlackElo "2667"]
[Result "0-1"]
[Round "04"]
[TimeControl "180+2"]
[Date "2023.02.28"]
[WhiteClock "0:00:04"]
[BlackClock "0:00:06"]

1. d4 {[%clk 0:02:59]}  d5 {[%clk 0:03:00]} 2. c4 {[%clk 0:02:59]}  c6 {[%clk 0:03:00]} 3. Nf3 {[%clk 0:02:58]}  Nf6 {[%clk 0:03:01]} 4. Qc2 {[%clk 0:02:56]}  g6 {[%clk 0:03:00]} 5. Bf4 {[%clk 0:02:46]}  Bg7 {[%clk 0:03:00]} 6. e3 {[%clk 0:02:46]}  O-O {[%clk 0:02:59]} 7. Nc3 {[%clk 0:02:45]}  a6 {[%clk 0:02:48]} 8. c5 {[%clk 0:02:25]}  Bf5 {[%clk 0:02:46]} 9. Qb3 {[%clk 0:02:24]}  Qc8 {[%clk 0:02:42]} 10. h3 {[%clk 0:02:25]}  Nbd7 {[%clk 0:02:40]} 11. Be2 {[%clk 0:02:24]}  Ne4 {[%clk 0:02:34]} 12. Na4 {[%clk 0:01:46]}  f6 {[%clk 0:01:58]} 13. Bh2 {[%clk 0:01:45]}  e5 {[%clk 0:01:57]} 14. O-O {[%clk 0:01:20]}  Rf7 {[%clk 0:01:56]} 15. Bd3 {[%clk 0:01:12]}  g5 {[%clk 0:01:08]} 16. dxe5 {[%clk 0:00:44]}  Ndxc5 {[%clk 0:01:07]} 17. Nxc5 {[%clk 0:00:43]}  Nxc5 {[%clk 0:01:08]} 18. Bxf5 {[%clk 0:00:44]}  Qxf5 {[%clk 0:01:08]} 19. Qa3 {[%clk 0:00:41]}  Ne6 {[%clk 0:00:58]} 20. Qc3 {[%clk 0:00:33]}  g4 {[%clk 0:00:54]} 21. hxg4 {[%clk 0:00:22]}  Qxg4 {[%clk 0:00:55]} 22. exf6 {[%clk 0:00:23]}  Bxf6 {[%clk 0:00:54]} 23. Ne5 {[%clk 0:00:23]}  Bxe5 {[%clk 0:00:52]} 24. Qxe5 {[%clk 0:00:16]}  Rg7 {[%clk 0:00:45]} 25. Bg3 {[%clk 0:00:14]}  Rf8 {[%clk 0:00:45]} 26. e4 {[%clk 0:00:12]}  d4 {[%clk 0:00:40]} 27. Rad1 {[%clk 0:00:11]}  Rg5 {[%clk 0:00:33]} 28. Qd6 {[%clk 0:00:06]}  Nf4 {[%clk 0:00:29]} 29. Rfe1 {[%clk 0:00:04]}  c5 {[%clk 0:00:14]} 30. b4 {[%clk 0:00:04]}  Rg6 {[%clk 0:00:10]} 31. Qxc5 {[%clk 0:00:03]}  Ne2+ {[%clk 0:00:07]} 32. Rxe2 {[%clk 0:00:04]}  Qxe2 {[%clk 0:00:07]} 33. Qd5+ {[%clk 0:00:04]}  Rf7 {[%clk 0:00:07]} 34. Qd8+ {[%clk 0:00:04]}  Rf8 {[%clk 0:00:07]} 35. Qxd4 {[%clk 0:00:04]}  Qh5 {[%clk 0:00:06]} 36. Qc4+ {[%clk 0:00:03]}  Kg7 {[%clk 0:00:05]} 37. Rd7+ {[%clk 0:00:03]}  Kh6 {[%clk 0:00:05]} 38. Qc1+ {[%clk 0:00:02]}  Qg5 {[%clk 0:00:05]} 39. Qc7 {[%clk 0:00:02]}  Rg7 {[%clk 0:00:04]} 40. Rxg7 {[%clk 0:00:01]}  Qxg7 {[%clk 0:00:05]} 41. Qd6+ {[%clk 0:00:02]}  Kh5 {[%clk 0:00:04]} 42. Qd5+ {[%clk 0:00:02]}  Qg5 {[%clk 0:00:03]} 43. Be5 {[%clk 0:00:02]}  Qc1+ {[%clk 0:00:03]} 44. Kh2 {[%clk 0:00:02]}  Qg5 {[%clk 0:00:03]} 45. Bg3 {[%clk 0:00:01]}  Qxd5 {[%clk 0:00:03]} 46. exd5 {[%clk 0:00:02]}  Kg6 {[%clk 0:00:03]} 47. d6 {[%clk 0:00:03]}  Kf5 {[%clk 0:00:03]} 48. f3 {[%clk 0:00:02]}  Ke6 {[%clk 0:00:03]} 49. Bf2 {[%clk 0:00:02]}  Rf5 {[%clk 0:00:04]} 50. Bc5 {[%clk 0:00:03]}  a5 {[%clk 0:00:03]} 51. a3 {[%clk 0:00:03]}  a4 {[%clk 0:00:04]} 52. g4 {[%clk 0:00:03]}  Rd5 {[%clk 0:00:04]} 53. f4 {[%clk 0:00:03]}  Rd3 {[%clk 0:00:05]} 54. f5+ {[%clk 0:00:04]}  Kd7 {[%clk 0:00:05]} 55. g5 {[%clk 0:00:04]}  Rxa3 {[%clk 0:00:05]} 56. g6 {[%clk 0:00:05]}  hxg6 {[%clk 0:00:05]} 57. fxg6 {[%clk 0:00:06]}  Ra2+ {[%clk 0:00:04]} 58. Kg3 {[%clk 0:00:06]}  Re2 {[%clk 0:00:05]} 59. b5 {[%clk 0:00:04]}  Re6 {[%clk 0:00:05]} 60. Kf4 {[%clk 0:00:03]}  Rxg6 {[%clk 0:00:05]} 61. Ke5 {[%clk 0:00:04]}  Rg5+ {[%clk 0:00:05]} 62. Kd4 {[%clk 0:00:05]}  Rg3 {[%clk 0:00:05]} 63. Kc4 {[%clk 0:00:03]}  a3 {[%clk 0:00:06]} 64. Kb4 {[%clk 0:00:04]}  a2 {[%clk 0:00:06]} 0-1


[Site "https://www.chess.com"]

[Event "Titled Tuesday Blitz February 28 Early 2023"]
[White "Erigaisi Arjun"]
[Black "Bernadskiy, Vitaliy"]
[WhiteFideId "35009192"]
[BlackFideId "14100371"]
[WhiteElo "2737"]
[BlackElo "2488"]
[Result "1-0"]
[Round "04"]
[TimeControl "180+2"]
[Date "2023.02.28"]
[WhiteClock "0:01:06"]
[BlackClock "0:00:13"]

1. c4 {[%clk 0:03:00]}  b6 {[%clk 0:02:59]} 2. e4 {[%clk 0:02:58]}  Bb7 {[%clk 0:02:58]} 3. Nc3 {[%clk 0:02:59]}  e5 {[%clk 0:02:58]} 4. Nf3 {[%clk 0:02:58]}  Nc6 {[%clk 0:02:56]} 5. d4 {[%clk 0:02:58]}  exd4 {[%clk 0:02:56]} 6. Nxd4 {[%clk 0:02:59]}  Nxd4 {[%clk 0:02:47]} 7. Qxd4 {[%clk 0:02:59]}  Qf6 {[%clk 0:02:47]} 8. Be3 {[%clk 0:02:56]}  Bb4 {[%clk 0:02:43]} 9. O-O-O {[%clk 0:02:22]}  Qxd4 {[%clk 0:02:18]} 10. Bxd4 {[%clk 0:02:21]}  Bxc3 {[%clk 0:01:53]} 11. Bxc3 {[%clk 0:02:20]}  Nf6 {[%clk 0:01:54]} 12. f3 {[%clk 0:02:18]}  d6 {[%clk 0:01:54]} 13. h4 {[%clk 0:02:16]}  O-O {[%clk 0:01:53]} 14. Rh3 {[%clk 0:02:07]}  Nd7 {[%clk 0:01:50]} 15. h5 {[%clk 0:02:04]}  h6 {[%clk 0:01:44]} 16. Rg3 {[%clk 0:02:00]}  f6 {[%clk 0:01:44]} 17. Bd3 {[%clk 0:02:01]}  Ne5 {[%clk 0:01:40]} 18. Be2 {[%clk 0:02:00]}  Rae8 {[%clk 0:01:35]} 19. b3 {[%clk 0:01:54]}  a5 {[%clk 0:01:34]} 20. Rh1 {[%clk 0:01:52]}  Bc8 {[%clk 0:01:33]} 21. Rh4 {[%clk 0:01:51]}  Be6 {[%clk 0:01:32]} 22. f4 {[%clk 0:01:40]}  Nc6 {[%clk 0:01:32]} 23. Bf3 {[%clk 0:01:38]}  Nb4 {[%clk 0:01:08]} 24. Kb1 {[%clk 0:01:28]}  Bd7 {[%clk 0:01:04]} 25. a3 {[%clk 0:01:20]}  Nd3 {[%clk 0:00:54]} 26. e5 {[%clk 0:01:08]}  fxe5 {[%clk 0:00:24]} 27. Bd5+ {[%clk 0:01:08]}  Kh8 {[%clk 0:00:23]} 28. Rxd3 {[%clk 0:01:09]}  c6 {[%clk 0:00:15]} 29. Be4 {[%clk 0:01:05]}  exf4 {[%clk 0:00:14]} 30. Rxd6 {[%clk 0:01:06]}  Rxe4 {[%clk 0:00:13]} 31. Rxd7 {[%clk 0:01:06]} 1-0


[Site "https://www.chess.com"]

[Event "Titled Tuesday Blitz February 28 Early 2023"]
[White "Kravtsiv, Martyn"]
[Black "Le, Tuan Minh"]
[WhiteFideId "14113147"]
[BlackFideId "12401153"]
[WhiteElo "2695"]
[BlackElo "2558"]
[Result "1/2-1/2"]
[Round "04"]
[TimeControl "180+2"]
[Date "2023.02.28"]
[WhiteClock "0:00:08"]
[BlackClock "0:00:08"]

1. e4 {[%clk 0:03:00]}  c5 {[%clk 0:02:57]} 2. Nf3 {[%clk 0:03:01]}  Nf6 {[%clk 0:02:58]} 3. Nc3 {[%clk 0:02:59]}  d6 {[%clk 0:02:52]} 4. d4 {[%clk 0:02:57]}  cxd4 {[%clk 0:02:53]} 5. Nxd4 {[%clk 0:02:58]}  g6 {[%clk 0:02:53]} 6. Be3 {[%clk 0:02:53]}  Bg7 {[%clk 0:02:53]} 7. f3 {[%clk 0:02:53]}  O-O {[%clk 0:02:54]} 8. Qd2 {[%clk 0:02:53]}  Nc6 {[%clk 0:02:54]} 9. Bc4 {[%clk 0:02:51]}  Bd7 {[%clk 0:02:52]} 10. O-O-O {[%clk 0:02:51]}  Rb8 {[%clk 0:02:53]} 11. Bb3 {[%clk 0:02:35]}  Na5 {[%clk 0:02:50]} 12. Kb1 {[%clk 0:02:35]}  b5 {[%clk 0:02:50]} 13. h4 {[%clk 0:02:34]}  Nc4 {[%clk 0:02:51]} 14. Bxc4 {[%clk 0:02:34]}  bxc4 {[%clk 0:02:51]} 15. Ka1 {[%clk 0:02:34]}  Qb6 {[%clk 0:02:46]} 16. Rb1 {[%clk 0:02:33]}  Qa6 {[%clk 0:02:41]} 17. h5 {[%clk 0:02:30]}  Rb4 {[%clk 0:02:31]} 18. Bh6 {[%clk 0:02:23]}  Bxh6 {[%clk 0:01:32]} 19. Qxh6 {[%clk 0:02:22]}  e5 {[%clk 0:01:33]} 20. Nf5 {[%clk 0:01:56]}  Bxf5 {[%clk 0:00:36]} 21. exf5 {[%clk 0:01:56]}  Qb7 {[%clk 0:00:22]} 22. Ne4 {[%clk 0:01:06]}  Nxe4 {[%clk 0:00:16]} 23. fxe4 {[%clk 0:01:07]}  Ra4 {[%clk 0:00:15]} 24. b3 {[%clk 0:00:25]}  cxb3 {[%clk 0:00:15]} 25. cxb3 {[%clk 0:00:13]}  Rxa2+ {[%clk 0:00:07]} 26. Kxa2 {[%clk 0:00:12]}  Qa6+ {[%clk 0:00:08]} 27. Kb2 {[%clk 0:00:12]}  Qe2+ {[%clk 0:00:09]} 28. Ka1 {[%clk 0:00:11]}  Qa6+ {[%clk 0:00:09]} 29. Kb2 {[%clk 0:00:11]}  Qe2+ {[%clk 0:00:10]} 30. Ka1 {[%clk 0:00:08]}  Qa6+ {[%clk 0:00:08]} 31. Kb2 {[%clk 0:00:08]} 1/2-1/2


[Site "https://www.chess.com"]